Cogmind - Beta 9.4 @@@ ROGUE MODE // 2020.01.22 @ 14:55:07 Player: Pimski Result: Destroyed by 8R-AWN with 8R-AWN's Boregun Performance ------------- Evolutions (0) 0 Regions Visited (3) 600 Robots Destroyed (21) 105 Value Destroyed (250) 250 Prototype IDs (37) 740 Alien Tech Used (0) 0 Bonus (16) 16 TOTAL SCORE: 1711 Bonus ------- Aligned with FarCom 300 Friendly Fire -284 Cogmind --------- Core Integrity 0/250 Matter 248/300 Energy 265/265 System Corruption 0% Temperature Cool (33) Movement Treading (180) Ox1 Location -10/Exiles Parts ------- > --- POWER (1) -------- Improved Ion Engine > --- PROPULSION (2) --- Light Treads > --- UTILITY (2) ------ Hardened Light Armor Plating Hardened Light Armor Plating > --- WEAPON (2) ------- Heavy Assault Rifle Heavy Assault Rifle > --- INVENTORY (4) ---- Hardened Light Armor Plating Hardened Light Armor Plating Peak State ------------ > --- POWER ------------ Improved Ion Engine > --- PROPULSION ------- Light Treads Light Treads > --- UTILITY ---------- Large Storage Unit Large Storage Unit > --- WEAPON ----------- Heavy Assault Rifle Datajack > --- INVENTORY -------- Light Treads Compact Wheel Medium Storage Unit Medium Storage Unit 0b10 Alert Chip Hardened Light Armor Plating Hardened Light Armor Plating Hardened Light Armor Plating Hardened Light Armor Plating PSU Rigger YOLO Cannon Heavy Assault Rifle Heavy Assault Rifle Heavy Assault Rifle Grenade Launcher [Rating: 14] Favorites ----------- Power Improved Ion Engine Engine Improved Ion Engine Propulsion Light Treads Treads Light Treads Leg Aluminum Leg Utility Large Storage Unit Storage Large Storage Unit Protection Hardened Light Armor Plating Weapon Heavy Assault Rifle Energy Gun Medium Laser Ballistic Gun Heavy Assault Rifle Launcher Grenade Launcher Special Melee Weapon Datajack Build | -11 -10 -10 -10 ------- Run | Scr Mat Min Exi Slots Evolved . | . . . . Power . | . . . . Propulsion . | . . . . Utility . | . . . . Weapon . | . . . . Parts Attached 19 | . 9 2 8 Power 1 | . 1 . . Engine 1 | . 1 . . Core . | . . . . Reactor . | . . . . Propulsion 3 | . 2 . 1 Treads 3 | . 2 . 1 Leg . | . . . . Wheel . | . . . . Hover . | . . . . Flight . | . . . . Utility 6 | . 4 . 2 Device . | . . . . Storage 3 | . 3 . . Processor . | . . . . Hackware . | . . . . Protection 3 | . 1 . 2 Artifact . | . . . . Weapon 9 | . 2 2 5 Energy Gun . | . . . . Energy Cannon . | . . . . Ballistic Gun 6 | . 2 1 3 Ballistic Cannon . | . . . . Launcher 2 | . . 1 1 Special Weapon . | . . . . Impact Weapon . | . . . . Slashing Weapon . | . . . . Piercing Weapon . | . . . . Special Melee Weapon 1 | . . . 1 Unidentified Prototypes . | . . . . Parts Lost 4 | . . . 4 Power . | . . . . Propulsion 2 | . . . 2 Utility . | . . . . Weapon 2 | . . . 2 Highest Loss Streak 4 | . . . 4 Average Slot Usage (%) 99 | . 98 100 99 Engine 14 | . 14 14 14 Treads 27 | . 27 28 27 Storage 22 | . 16 28 25 Protection 4 | . 10 . 2 Ballistic Gun 23 | . 27 27 19 Launcher 1 | . . . 2 Special Melee Weapon 3 | . . . 5 Naked Turns . | . . . . Heaviest Build 45 | 12 45 45 45 Greatest Support 40 | 20 40 40 40 Greatest Overweight (x) 1 | . 1 1 1 Average Overweight (x) . | . . 1 . Largest Inventory Capacity 16 | 6 16 16 16 Average Capacity 12 | 6 8 16 14 Most Carried 16 | 6 13 14 16 Average Carried 10 | 6 7 13 12 Final Capacity 16 | 6 16 16 4 Final Carried 14 | 6 13 14 2 Class Distribution -------------------- 100% | Mutant Dominant Class ---------------- Mutant | -10/Materials Mutant | -10/Mines Mutant | -10/Exiles Resources | -11 -10 -10 -10 ----------- Run | Scr Mat Min Exi Matter Collected 860 | 203 417 66 174 Remotely . | . . . . Salvage Created 571 | 78 455 21 17 Parts 29 | 3 23 3 . Haulers Intercepted 1 | . 1 . . Recyclers Shooed 2 | . 2 . . Parts Field Recycled . | . . . . Retrieved Matter . | . . . . Parts Self-Destructed . | . . . . Prevented . | . . . . Kills | -11 -10 -10 -10 ------- Run | Scr Mat Min Exi Combat Hostiles Destroyed 16 | . 8 3 5 Guns 9 | . 8 . 1 AOE 7 | . . 3 4 Classes Destroyed 5 | 1 3 . 1 Hauler 1 | . 1 . . Recycler 3 | 1 2 . . Swarmer 6 | . 3 3 . Grunt 5 | . 5 . . Assembled 6 | . . . 6 Best Kill Streak 6 | 1 6 3 5 Combat Bots Only 5 | . 5 3 5 Max Kills in Single Turn 3 | 1 1 3 2 Gunslinging . | . . . . Exploded 3 | . . 3 2 Melee . | . . . . Uniques/NPCs Destroyed . | . . . . Combat | -11 -10 -10 -10 -------- Run | Scr Mat Min Exi Damage Taken 1067 | . 265 58 744 Core 262 | . 74 18 170 Absorbed by Shields . | . . . . Core Remaining (%) 100 | 100 . . . Volleys Fired 59 | 3 33 2 21 Largest 2 | 2 2 2 2 Hottest 70 | 70 46 46 46 Shots Fired 112 | 6 66 3 37 Gun 106 | 6 66 2 32 Cannon . | . . . . Launcher 6 | . . 1 5 Special . | . . . . Kinetic 103 | 3 66 2 32 Thermal 3 | 3 . . . Explosive 6 | . . 1 5 Electromagnetic . | . . . . Robot Hit Streak 9 | 2 8 2 9 Robot Miss Streak 4 | 3 4 1 1 Penetration Max . | . . . . Secondary Targets . | . . . . Shots Hit Robots 80 | 3 44 2 31 Core Hits 38 | 2 17 3 16 Critical Hits . | . . . . Critical Kills . | . . . . Critical Parts Destroyed . | . . . . Melee Attacks 4 | . . . 4 Impact . | . . . . Slashing . | . . . . Piercing . | . . . . Sneak Attacks 4 | . . . 4 Combat Hostiles . | . . . . Follow-up Attacks . | . . . . Damage Inflicted 1708 | 35 679 109 885 Guns 1105 | 35 679 . 391 Cannons . | . . . . Explosions 603 | . . 109 494 Melee . | . . . . Ramming . | . . . . Kinetic 1080 | 10 679 . 391 Thermal 25 | 25 . . . Explosive 603 | . . 109 494 Electromagnetic . | . . . . Impact . | . . . . Slashing . | . . . . Piercing . | . . . . Highest Corruption . | . . . . Average Corruption . | . . . . Corruption Purged . | . . . . Overload Shots . | . . . . Overflow Damage 4 | . . . 4 Projectiles . | . . . . Explosions 4 | . . . 4 Melee . | . . . . Knockbacks . | . . . . Impact . | . . . . Kinetic . | . . . . Secondary . | . . . . Self-Inflicted Damage 14 | . . 14 . Shots 1 | . . 1 . Rammed . | . . . . Targets Rammed . | . . . . Kicked . | . . . . Crushed . | . . . . Highest Temperature 63 | 50 63 . 33 Average Temperature 14 | 26 15 . 11 Received Heat Transfer 120 | . 120 . . Siege Activations . | . . . . Robots Corrupted . | . . . . Combat Hostiles . | . . . . Parts Fried . | . . . . Impact Corruptions . | . . . . Robots Melted . | . . . . Combat Hostiles . | . . . . Parts Melted . | . . . . Heat Transferred 74 | 74 . . . Parts Sabotaged . | . . . . Parts Stolen . | . . . . Parts Stripped . | . . . . Power Chain Reactions . | . . . . Missiles Intercepted . | . . . . Alert | -11 -10 -10 -10 ------- Run | Scr Mat Min Exi Peak Influence 239 | 5 239 85 . Average Influence 64 | 3 77 32 . Maximum Alert Level 1 | . 1 . . Low Security (%) 90 | 100 86 100 . Level 1 9 | . 13 . . Level 2 . | . . . . Level 3 . | . . . . Level 4 . | . . . . Level 5 . | . . . . High Security . | . . . . Max Security . | . . . . Squads Dispatched 2 | . 2 . . Investigation 1 | . 1 . . Extermination . | . . . . Reinforcement 1 | . 1 . . Assault . | . . . . Garrison . | . . . . Intercept . | . . . . Construction Impeded . | . . . . Haulers Reinforced . | . . . . Stealth | -11 -10 -10 -10 --------- Run | Scr Mat Min Exi Distress Signals . | . . . . Communications Jammed . | . . . . Distress Signals . | . . . . Times Spotted 22 | . 12 3 7 Peak Tracking Total 8 | . 3 3 8 Tactical Retreats 1 | . 1 . . Traps | -11 -10 -10 -10 ------- Run | Scr Mat Min Exi Traps Triggered 1 | . 1 . . Indirectly . | . . . . Trap Hack Attempts . | . . . . Triggered . | . . . . Disarmed . | . . . . Reprogrammed . | . . . . Reused . | . . . . Traps Extracted . | . . . . Installed . | . . . . Triggered . | . . . . Machines | -11 -10 -10 -10 ---------- Run | Scr Mat Min Exi Machines Disabled 4 | . . . 4 Max in Single Turn 2 | . . . 2 Machines Sabotaged . | . . . . Garrisons Compromised . | . . . . Overloaded Fab Kills . | . . . . Fab Network Shutdowns . | . . . . Hacking | -11 -10 -10 -10 --------- Run | Scr Mat Min Exi Machines Accessed 5 | . 3 . 2 Terminals 3 | . 3 . . Fabricators . | . . . . Repair Stations . | . . . . Recycling Units . | . . . . Scanalyzers . | . . . . Garrison Access . | . . . . Total Hacks 9 | . 7 . 2 Successful 8 | . 6 . 2 Failed 1 | . 1 . . Catastrophic . | . . . . Database Lockouts . | . . . . Manual 6 | . 5 . 1 Terminals 7 | . 7 . . Fabricators . | . . . . Repair Stations . | . . . . Recycling Units . | . . . . Scanalyzers . | . . . . Garrison Access . | . . . . Terminal Hacks 6 | . 4 . 2 Record 1 | . . . 1 Prototype ID Bank 1 | . 1 . . Branch Access Points 1 | . 1 . . Recall Investigation 1 | . 1 . . Hauler Manifests 1 | . 1 . . EX-Prototype ID Bank 1 | . . . 1 Fabricator Hacks . | . . . . Repair Station Hacks . | . . . . Recycling Unit Hacks . | . . . . Scanalyzer . | . . . . Garrison Access Hacks . | . . . . Unauthorized Hacks 4 | . 4 . . Terminals 2 | . 2 . . Botnet 2 | . 2 . . Fabricators . | . . . . Repair Stations . | . . . . Recycling Units . | . . . . Scanalyzers . | . . . . Garrison Access . | . . . . Data Cores Recovered . | . . . . Used . | . . . . Hacking Detections 3 | . 3 . . Full Trace Events . | . . . . Feedback Events . | . . . . Feedback Blocked . | . . . . Robot Schematics Acquired . | . . . . Robots Built . | . . . . Matter . | . . . . Time . | . . . . Total Robot Build Rating . | . . . . Part Schematics Acquired . | . . . . Parts Built . | . . . . Matter . | . . . . Time . | . . . . Total Part Build Rating . | . . . . Parts Repaired . | . . . . Time . | . . . . Parts Recycled . | . . . . Recycled Matter . | . . . . Retrieved Matter . | . . . . Retrieved Components . | . . . . Parts Scanalyzed . | . . . . Part Schematics Acquired . | . . . . Parts Damaged . | . . . . Bothacking | -11 -10 -10 -10 ------------ Run | Scr Mat Min Exi Used RIF Installer . | . . . . Robots Hacked 4 | . . . 4 Non-combat 3 | . . . 3 Combat 1 | . . . 1 Robot Hacks Applied 4 | . . . 4 parse_system 4 | . . . 4 Relay Couplers Released . | . . . . Robots Rewired . | . . . . Allies Hacked . | . . . . Hacks Repelled . | . . . . Allies | -11 -10 -10 -10 -------- Run | Scr Mat Min Exi Total Allies . | . . . . Largest Group . | . . . . Highest-Rated Group . | . . . . Highest-Rated Ally . | . . . . Total Orders . | . . . . Ally Attacks . | . . . . Total Damage . | . . . . Kills . | . . . . Allies Corrupted . | . . . . Allies Melted . | . . . . Intel | -11 -10 -10 -10 ------- Run | Scr Mat Min Exi Robot Analysis Total . | . . . . Derelict Logs Recovered . | . . . . Drone Launches . | . . . . Drone Recoveries . | . . . . Exploration | -11 -10 -10 -10 ------------- Run | Scr Mat Min Exi Turns Passed 1628 | 21 563 193 851 Spaces Moved 792 | 11 249 103 429 Core . | . . . . Treads 773 | . 241 103 429 Legs 19 | 11 8 . . Wheels . | . . . . Hover . | . . . . Flight . | . . . . Fastest Speed 120 | 120 120 180 160 Average Speed 172 | 120 163 180 177 Slowest Speed 180 | 120 180 180 180 Overloaded Moves . | . . . . Propulsion Burnouts . | . . . . Robots Hopped . | . . . . Cave-ins Triggered . | . . . . Exploration Rate (%) 29 | 2 33 24 60 Regions Visited 3 Branch Regions 2 Pre-discovered Areas 1 | . . . 1 Known Exits Taken 1 | . 1 . . Unknown Exits Taken 2 | 1 . 1 . Scrap Searched 1 | . . 1 . Spaces Dug . | . . . . Terrain Destroyed 21 | . . 8 13 Melee . | . . . . Projectile . | . . . . AOE 21 | . . 8 13 Actions | -11 -10 -10 -10 --------- Run | Scr Mat Min Exi Total 946 | 13 343 107 483 Wait 30 | . 28 . 2 Move 789 | 10 248 102 429 Hop . | . . . . Pick Up 19 | . 13 1 5 Fast Attach 4 | . 4 . . Attach 8 | . 3 . 5 Detach 1 | . 1 . . Swap 7 | . 2 2 3 Drop 25 | . 11 . 14 Fire 59 | 3 33 2 21 Melee 4 | . . . 4 Ram . | . . . . Kick . | . . . . Crush . | . . . . Escape Stasis . | . . . . Rewire . | . . . . Trap . | . . . . Miscellaneous . | . . . . Route ------- -11/Scrapyard -10/Materials (discovered 2 exits: *Min x2) -10/Mines -10/Exiles (discovered 1 exit: [*Min]) History --------- Turn | Location | Event 10 | -11/Scrapyard | Discovered new exit (range 3) 22 | -11/Scrapyard | Entered Materials 253 | -10/Materials | Identified exit to Mines 308 | -10/Materials | Build established: Mutant 585 | -10/Materials | Entered Mines 698 | -10/Mines | Deemed a non-threat by the Exiles lab entrance 698 | -10/Mines | Discovered new exit (range 5) 778 | -10/Mines | Entered Exiles 822 | -10/Exiles | Met 8R-AWN 854 | -10/Exiles | Met EX-HEX 944 | -10/Exiles | Met EX-DEC 973 | -10/Exiles | Learned location of Zion (-6) 1219 | -10/Exiles | Met EX-BIN 1246 | -10/Exiles | Aligned with FarCom system 1248 | -10/Exiles | Given EX-Vault access code 1289 | -10/Exiles | Opened EX-Vault 1297 | -10/Exiles | Found PSU Rigger 1303 | -10/Exiles | Found YOLO Cannon 1306 | -10/Exiles | Found 0b10 Alert Chip 1348 | -10/Exiles | Warned to stay clear of 0b10 Research branches 1463 | -10/Exiles | Discovered new exit (range 14) 1567 | -10/Exiles | Attacked by the Exiles 1586 | -10/Exiles | Core integrity fell below 50% 1606 | -10/Exiles | Core integrity fell below 20% 1629 | -10/Exiles | Destroyed by 8R-AWN with 8R-AWN's Boregun Last Messages --------------- 01607_ Critical hit. 01607_ Penetrated by HV Slug. 01610_ Critical hit. 01610_ Lgt. Treads destroyed. 01610_ Penetrated by HV Slug. 01610_ Critical hit. 01612_ Penetrated by HV Slug. 01614_ HV Slug penetrates Wall. 01616_ Penetrated by HV Slug. 01616_ Hvy. Assault Rifle destroyed. 01616_ HV Slug penetrates Wall. 01619_ Dropped Grenade Launcher. 01619_ Penetrated by HV Slug. 01619_ Dropped Lrg. Storage Unit. 01621_ Penetrated by HV Slug. 01621_ Critical hit. 01621_ Hvy. Assault Rifle destroyed. 01625_ The unstable cave ceiling collapses. 01625_ Machine disabled. 01625_ Penetrated by HV Slug. Map ----- +----------------------------------------------------+ | """#???????????????????????????????????? | | """#???????????????????????????????????? | | """#???????????????????????????????????? | | """##??????????????????????????????????? | | """""??????????????????????????????????? | | """##??????????????????????????????????? | | "X" """""??????????????????????????????????? | | """ #???????????????????????????????????? | | """""""""#???????????????????????????????????? | | ###########???????????????????????????????????? | | #?????????????????????????????????????????????? | | #?????????????????????????????????????????????? | | ##????????????????????????????????????????????? | | ##???###########?????????????????????????????? | | #####"""" """"##????????????????????????????? | | " "" """"##???????????????????????????? | | "" " #???????????????????????????? | | " """#???????????????????????????? | | a"#???????????#####???????????? | | " "##?????????##" #???????????? | | "###???????#" #???????????? | | " ""#??????##" ##??????????? | | """ "#????### ###????????# | | ####""" ##???# ########## | | ???##""" ##### #""""## | | ????#"""" !@]## | | ???##"" !g ## | | ####"""" #### | | #""" "#?#"""""#### | | "" #"""##?#######??#### | | ######??????????????### | | #?????????????????????? | | " ##?????????????????????? | | "" "" ##??????????????????????? | | ##""" " " ""# ???????????????????????? | | ######""" """## ##???????????????????????? | | #????###""""### # # ?????????????????????????? | | ####???######??## #####?????????????????????????? | | "!#????????????????????????????????????????????? | | !#????????????????????????????????????????????? | | "#????????????????????????????????????????????? | | ""!"#????????????????????????????????????????????? | | #####????????????????????????????????????????????? | | ?????????????????????????????????????????????????? | | ?????????????????????????????????????????????????? | | ?????????????????????????????????????????????????? | | ?????????????????????????????????????????????????? | | ?????????????????????????????????????????????????? | | ?????????????????????????????????????????????????? | | ?????????????????????????????????????????????????? | +----------------------------------------------------+ Best States ------------- Heat Dissipation 25 Energy Generation 12 Energy Capacity 265 Matter Stores 300 Matter Capacity 300 Sight Range 16 Terrain Scan Density 10 Armor Coverage 150 Evasion (%) 40 Recoil Reduction 2 Item Schematics ----------------- None Robot Schematics ------------------ None Fabricated ------------ Nothing Alien Tech Used ----------------- None Achievements -------------- None Challenges ------------ None Game ------ Seed MomentumKineticTreads Manual? 0 Play Time 00:11:30 Cumulative 630.8 hours Start 2020.01.22 @ 14:41:47 End 2020.01.22 @ 14:55:07 Sessions 1 Manual Loads 0 Difficulty Rogue Special Mode None Game No. 407 Rogue 407 Adventurer 0 Explorer 0 Win Type - Total 102 Types 68/6/8/10/5/1/4 Lore% 97 Gallery% 95 Achievement% 80 Wizard Run 0 Options --------- ASCII 0 Keyboard 0 Movement Numpad Keybinds 0 Fullscreen 2 Font 18/SmallcapsGlow Map View 76x50 Tactical HUD 1 Map Filters NONE Filters NONE Steam 1 RUN: cfaa6ecf-a6a4-4842-9f70-eb0a6c4f9706